Cogmind - Beta 17 @@@ ROGUE MODE // 2026.08.03 @ 10:24:02 Player: teag2 Result: Destroyed by T5-B5S(R) with Subdweller Beam Cannon Performance ------------- Evolutions (0) 0 Regions Visited (2) 400 Robots Destroyed (30) 150 Value Destroyed (718) 718 Prototype IDs (1) 20 Alien Tech Used (0) 0 Bonus (0) 0 TOTAL SCORE: 1288 Bonus ------- None Cogmind --------- Core Integrity 0/250 Matter 300/300 Energy 276/280 System Corruption 0% Temperature Cool (11) Movement Treading (160) Location -10/Subcaves Parts ------- > --- POWER (1) -------- Heavy Ion Engine > --- PROPULSION (2) --- Improved Treads Improved Treads > --- UTILITY (2) ------ Large Storage Unit Hardened Light Armor Plating > --- WEAPON (2) ------- Subdweller Laser Assault Rifle > --- INVENTORY (15) --- Heavy Ion Engine Improved Treads Improved Treads Improved Heat Sink Light Armor Plating Hardened Light Armor Plating Hardened Light Armor Plating Hardened Light Armor Plating Beam Cannon Assault Rifle Subdweller Machine Gun Light Cannon Peak State ------------ > --- POWER ------------ Heavy Ion Engine > --- PROPULSION ------- Improved Treads Improved Treads > --- UTILITY ---------- Large Storage Unit Hardened Light Armor Plating > --- WEAPON ----------- Subdweller Laser Assault Rifle > --- INVENTORY -------- Heavy Ion Engine Improved Treads Improved Treads Improved Heat Sink Light Armor Plating Hardened Light Armor Plating Hardened Light Armor Plating Hardened Light Armor Plating Beam Cannon Assault Rifle Subdweller Machine Gun Light Cannon [Rating: 15] Favorites ----------- Power Heavy Ion Engine Engine Heavy Ion Engine Propulsion Light Treads Treads Light Treads Leg Aluminum Leg Utility Large Storage Unit Storage Large Storage Unit Protection Light Armor Plating Weapon Assault Rifle Energy Gun Subdweller Laser Ballistic Gun Assault Rifle Ballistic Cannon Light Cannon Build | -11 -10 -10 ------- Run | Yrd Mat Sub Slots Evolved . | . . . Power . | . . . Propulsion . | . . . Utility . | . . . Weapon . | . . . Parts Attached 13 | . 7 6 Power 1 | . 1 . Engine 1 | . 1 . Core . | . . . Reactor . | . . . Propulsion 5 | . 2 3 Treads 5 | . 2 3 Leg . | . . . Wheel . | . . . Hover . | . . . Flight . | . . . Utility 5 | . 4 1 Device . | . . . Storage 2 | . 2 . Processor . | . . . Hackware . | . . . Protection 3 | . 2 1 Artifact . | . . . Weapon 2 | . . 2 Energy Gun 1 | . . 1 Energy Cannon . | . . . Ballistic Gun . | . . . Ballistic Cannon 1 | . . 1 Launcher . | . . . Special Weapon . | . . . Impact Weapon . | . . . Slashing Weapon . | . . . Piercing Weapon . | . . . Special Melee Weapon . | . . . Unidentified Prototypes 1 | . 1 . Parts Lost 5 | . 1 4 Power . | . . . Propulsion 3 | . . 3 Utility 2 | . 1 1 Weapon . | . . . Highest Loss Streak 3 | . 1 3 To Critical Strikes 1 | . . 1 Average Backups 11 | 6 11 12 Power 1 | 1 1 1 Propulsion 3 | 4 4 3 Utility 4 | . 4 5 Weapon 2 | 1 2 3 Tool/Special . | . . . Unused Backups 16 | . 6 10 Power 1 | . . 1 Propulsion 4 | . 2 2 Utility 6 | . 1 5 Weapon 5 | . 3 2 Tool/Special . | . . . Average Slot Usage (%) 99 | . 99 99 Engine 14 | . 14 14 Treads 27 | . 27 27 Storage 14 | . 14 14 Protection 13 | . 13 13 Energy Gun 3 | . . 11 Ballistic Gun 23 | . 28 14 Peak Build Rating 15 | 6 11 15 Average Rating 11 | 6 10 13 On Entrance 7 | 6 6 11 Avg Prop Armor Cover (%) . | . . . Naked Turns . | . . . Heaviest Build 39 | 12 35 39 Greatest Support 46 | 20 40 46 Greatest Overweight (x) 1 | . . 1 Average Overweight (x) . | . . . Largest Inventory Capacity 15 | 8 15 15 Average Capacity 13 | 8 12 15 Most Carried 15 | 6 15 14 Average Carried 11 | 6 11 12 Final Capacity 15 | 8 15 15 Final Carried 14 | 6 14 12 Class Distribution -------------------- 100% | Mutant Dominant Class ---------------- Mutant | -10/Materials Mutant | -10/Subcaves Resources | -11 -10 -10 ----------- Run | Yrd Mat Sub Matter Collected 794 | 200 477 117 Remotely . | . . . Salvage Created 958 | . 808 150 Parts 63 | . 53 10 Haulers Intercepted 2 | . 2 . Recyclers Shooed . | . . . Parts Field Recycled . | . . . Retrieved Matter . | . . . Parts Self-Destructed 6 | . . 6 Prevented . | . . . Parts Restored . | . . . Kills | -11 -10 -10 ------- Run | Yrd Mat Sub Combat Hostiles Destroyed 22 | . 15 7 Guns 21 | . 15 6 Cannons 1 | . . 1 Classes Destroyed 7 | . 6 1 Builder 2 | . 2 . Hauler 2 | . 2 . Recycler 1 | . 1 . Watcher 3 | . 3 . Swarmer 7 | . 3 4 Grunt 12 | . 12 . Subdweller 3 | . . 3 Best Kill Streak 4 | . 3 4 Combat Bots Only 4 | . 3 4 Max Kills in Single Turn 2 | . 2 1 Gunslinging 1 | . 1 . Exploded . | . . . Melee . | . . . Uniques/NPCs Destroyed . | . . . Combat | -11 -10 -10 -------- Run | Yrd Mat Sub Hostile Shots Fired 136 | . 81 55 Missed 41 | . 24 17 Hits 95 | . 57 38 Projectile 95 | . 57 38 AOE 5 | . . 5 Critical Strikes 3 | . 1 2 Damage Taken 1378 | . 699 679 Core 256 | . 196 60 Absorbed by Shields . | . . . Core Remaining (%) 100 | 100 . . Volleys Fired 112 | . 73 39 Largest 2 | . 2 2 Hottest 80 | . 40 80 Shots Fired 205 | . 146 59 Gun 202 | . 146 56 Cannon 3 | . . 3 Launcher . | . . . Special . | . . . Kinetic 169 | . 146 23 Thermal 36 | . . 36 Explosive . | . . . Electromagnetic . | . . . Robot Hit Streak 11 | . 11 5 Robot Miss Streak 4 | . 4 3 Penetration Max . | . . . Secondary Targets 4 | . 3 1 Max Gunslinging Chain 1 | . 1 1 Shots Hit Robots 122 | . 102 20 Core Hits 50 | . 40 10 Critical Kills 1 | . 1 . Critical Parts Destroyed . | . . . Critical Strikes 1 | . 1 . Destroy 1 | . 1 . Melee Attacks . | . . . Impact . | . . . Slashing . | . . . Piercing . | . . . Sneak Attacks . | . . . Combat Hostiles . | . . . Follow-up Attacks . | . . . Damage Inflicted 1634 | . 1304 330 Guns 1532 | . 1250 282 Cannons 48 | . . 48 Explosions . | . . . Melee . | . . . Ramming 54 | . 54 . Kinetic 1413 | . 1250 163 Thermal 167 | . . 167 Explosive . | . . . Electromagnetic . | . . . Impact . | . . . Slashing . | . . . Piercing . | . . . Highest Corruption . | . . . Average Corruption . | . . . Corruption Purged . | . . . Corruption Blocked . | . . . Overload Shots . | . . . Overflow Damage . | . . . Projectiles . | . . . Explosions . | . . . Melee . | . . . Knockbacks 2 | . 2 . Impact 2 | . 2 . Kinetic . | . . . Secondary . | . . . Self-Inflicted Damage . | . . . Shots . | . . . Rammed 9 | . 9 . Targets Rammed 11 | . 11 . Kicked . | . . . Crushed 2 | . 2 . Highest Temperature 30 | . 30 . Average Temperature 11 | . 11 . Received Heat Transfer 483 | . 393 90 Siege Activations . | . . . Martial Activations . | . . . Shielding Activations . | . . . Robots Disrupted . | . . . Combat Hostiles . | . . . Robots Corrupted . | . . . Combat Hostiles . | . . . Parts Fried . | . . . Impact Corruptions . | . . . Robots Melted . | . . . Combat Hostiles . | . . . Parts Melted . | . . . Heat Transferred 200 | . . 200 Parts Sabotaged . | . . . Parts Stolen . | . . . Parts Stripped . | . . . Power Chain Reactions . | . . . Alert | -11 -10 -10 ------- Run | Yrd Mat Sub Maximum Alert Level . | . . . Low Security (%) 100 | 100 100 . Level 1 . | . . . Level 2 . | . . . Level 3 . | . . . Level 4 . | . . . Level 5 . | . . . High Security . | . . . Max Security . | . . . Peak Influence 110 | . 110 . Initial . | . . . Average 30 | . 30 . Influence Increases 791 | . 501 290 Destroy 0b10 Robot/C 380 | . 300 80 Destroy 0b10 Robot/NC 40 | . 40 . Destroy Leader 90 | . 90 . Successful Hack 11 | . 11 . Select Force Hacks 60 | . 60 . Lose Combat Pursuer 210 | . . 210 Influence Decreases 738 | . 410 328 Entered New Map 44 | . . 44 Time Decay 657 | . 400 257 Lost Part 37 | . 10 27 Squads Dispatched 4 | . 4 . Investigation 3 | . 3 . Extermination . | . . . Reinforcement 1 | . 1 . Assault . | . . . Garrison . | . . . Intercept . | . . . Searches Triggered . | . . . Construction Impeded . | . . . Haulers Reinforced . | . . . Active Scanning Responses . | . . . Cargo Convoy Interrupts . | . . . Stealth | -11 -10 -10 --------- Run | Yrd Mat Sub Distress Signals 1 | . 1 . Communications Jammed . | . . . Distress Signals . | . . . Times Spotted 40 | . 27 13 Peak Tracking Total 4 | . 3 4 Tactical Retreats 5 | . . 5 Traps | -11 -10 -10 ------- Run | Yrd Mat Sub Traps Triggered 1 | . 1 . Indirectly . | . . . Trap Hack Attempts . | . . . Triggered . | . . . Disarmed . | . . . Reprogrammed . | . . . Reused . | . . . Traps Extracted . | . . . Installed . | . . . Triggered . | . . . Machines | -11 -10 -10 ---------- Run | Yrd Mat Sub Machines Disabled . | . . . Max in Single Turn . | . . . Machines Repaired . | . . . Machines Dismantled . | . . . Machines Sabotaged . | . . . Overloaded Fab Kills . | . . . Hacking | -11 -10 -10 --------- Run | Yrd Mat Sub Machines Accessed 8 | . 8 . Terminals 6 | . 6 . Fabricators . | . . . Repair Stations . | . . . Recycling Units 2 | . 2 . Scanalyzers . | . . . Garrison Access . | . . . Total Hacks 17 | . 17 . Successful 10 | . 10 . Failed 7 | . 7 . Catastrophic . | . . . Database Lockouts . | . . . Manual 17 | . 17 . Terminals 15 | . 15 . Fabricators . | . . . Repair Stations . | . . . Recycling Units 2 | . 2 . Scanalyzers . | . . . Garrison Access . | . . . Terminal Hacks . | . . . Fabricator Hacks . | . . . Repair Station Hacks . | . . . Recycling Unit Hacks . | . . . Scanalyzer . | . . . Garrison Access Hacks . | . . . Unauthorized Hacks 10 | . 10 . Terminals 8 | . 8 . Assimilate 1 | . 1 . Botnet 1 | . 1 . Operators 1 | . 1 . Skim 5 | . 5 . Fabricators . | . . . Repair Stations . | . . . Recycling Units 2 | . 2 . Tunnel 2 | . 2 . Scanalyzers . | . . . Garrison Access . | . . . Data Cores Recovered . | . . . Used . | . . . Hacking Detections 5 | . 5 . Full Trace Events . | . . . Feedback Events . | . . . Feedback Blocked . | . . . Robot Schematics Acquired . | . . . Robots Built . | . . . Authchips . | . . . Time . | . . . Total Robot Build Rating . | . . . Part Schematics Acquired . | . . . Parts Built . | . . . Authchips . | . . . Time . | . . . Total Part Build Rating . | . . . Part Studies Acquired . | . . . Parts Repaired . | . . . Time . | . . . Parts Recycled . | . . . Recycled Matter . | . . . Retrieved Matter . | . . . Retrieved Components . | . . . Parts Scanalyzed . | . . . Part Schematics Acquired . | . . . Parts Damaged . | . . . Bothacking | -11 -10 -10 ------------ Run | Yrd Mat Sub Used RIF Installer . | . . . Robots Hacked . | . . . Non-combat . | . . . Combat . | . . . Robot Hacks Applied . | . . . Relay Couplers Released . | . . . Fabnet Peak Effective % . | . . . Robots Rewired . | . . . Allies Hacked . | . . . Hacks Repelled . | . . . Allies | -11 -10 -10 -------- Run | Yrd Mat Sub Total Allies . | . . . Largest Group . | . . . Highest-Rated Group . | . . . Highest-Rated Ally . | . . . Total Orders . | . . . Ally Attacks . | . . . Total Damage . | . . . Kills . | . . . Allies Corrupted . | . . . Allies Melted . | . . . Intel | -11 -10 -10 ------- Run | Yrd Mat Sub Active Infowar (turns) . | . . . Robot Analysis Total . | . . . Derelict Logs Recovered . | . . . Drone Launches . | . . . Drone Recoveries . | . . . Exploration | -11 -10 -10 ------------- Run | Yrd Mat Sub Turns Passed 3058 | 2 2090 966 Spaces Moved 1520 | 2 985 533 Core . | . . . Treads 1492 | . 959 533 Legs 28 | 2 26 . Wheels . | . . . Hover . | . . . Flight . | . . . Fastest Speed 120 | 120 120 160 Average Speed 159 | 120 158 160 Slowest Speed 240 | 120 160 240 Overloaded Moves . | . . . Propulsion Burnouts . | . . . Robots Hopped . | . . . Potential Cave-ins . | . . . Cave-ins Triggered . | . . . Exploration Rate (%) 38 | 2 87 27 Regions Visited 2 Branch Regions 1 Pre-discovered Areas 2 | . 2 . Known Exits Taken 1 | . 1 . Unknown Exits Taken 1 | 1 . . Scrap Searched 3 | . . 3 Spaces Dug . | . . . Terrain Destroyed . | . . . Melee . | . . . Projectile . | . . . AOE . | . . . Terrain Rammed . | . . . Walls Destroyed . | . . . Machines Disabled . | . . . Actions | -11 -10 -10 --------- Run | Yrd Mat Sub Total 1946 | 1 1360 585 Wait 265 | . 260 5 Move 1518 | 1 984 533 Hop . | . . . Pick Up 18 | . 16 2 Fast Attach 1 | . 1 . Attach 6 | . 2 4 Detach . | . . . Swap 6 | . 4 2 Drop 9 | . 9 . Fire 112 | . 73 39 Melee . | . . . Ram . | . . . Kick . | . . . Crush 11 | . 11 . Escape Stasis . | . . . Rewire . | . . . Trap . | . . . Miscellaneous . | . . . Route ------- -11/Scrapyard -10/Materials (discovered 6 exits: *Mat x3 / *Min x2 / *Sub) -10/Subcaves History --------- Turn | Location | Event 1 | -11/Scrapyard | Discovered new exit (range 1) 3 | -11/Scrapyard | Entered Materials 317 | -10/Materials | Build established: Mutant 377 | -10/Materials | Discovered new exit (range 14) 577 | -10/Materials | Discovered new exit (range 8) 825 | -10/Materials | Discovered new exit (range 8) 942 | -10/Materials | Discovered new exit (range 10) 1423 | -10/Materials | Discovered new exit (range 13) 1510 | -10/Materials | Learned location of 1 exit from Recycling 1580 | -10/Materials | Core integrity fell below 50% 1584 | -10/Materials | Learned Storage garrison access intel 1649 | -10/Materials | Identified exit to Mines 1649 | -10/Materials | Identified exit to Materials 1649 | -10/Materials | Identified exit to Subcaves 1750 | -10/Materials | Loaded intel: 11 trap records 1785 | -10/Materials | Learned location of 3 exits from Materials 1885 | -10/Materials | Learned Materials trap positions 2093 | -10/Materials | Entered Subcaves 2094 | -10/Subcaves | Approached by a straggling Scientist 2198 | -10/Subcaves | Lost 3 parts (2n1u) 2241 | -10/Subcaves | Shifting Twisted Machinery released Sub. Laser 2242 | -10/Subcaves | Shifting Twisted Machinery released Battle Rifle 2297 | -10/Subcaves | Core integrity fell below 20% 3059 | -10/Subcaves | Destroyed by T5-B5S(R) with Subdweller Beam Cannon Last Messages --------------- 02309_ Subatomizers dissect the Wheel. 02310_ Flight Unit fries itself beyond repair. 02333_ P4-173(R) destroyed. 02336_ Acquired 27 matter. 02712_ 24-E0V(u) tweaks Twisted Machinery. 02731_ 24-E0V(u) builds Twisted Machinery. 02830_ Subatomizers dissect the Ion Engine. 02901_ Subatomizers dissect the Sub. Power Source. 03017_ Critical hit (Destroy). 03017_ Lgt. Treads destroyed. 03037_ Acquired 10 matter. 03043_ T5-B5S(R) affixes Scrap Shield Fragment to Scrap Shield. 03044_ BX-6KE(R) affixes Scrap Shield Fragment to Scrap Shield. 03050_ BX-6KE(R) destroyed. 03057_ Acquired 9 matter. 03058_ T5-B5S(R) affixes Scrap Shield Fragment to Scrap Shield. Map ----- +----------------------------------------------------+ | ## #???## ### ### #### ##???????? | | % #??## ###??# ###?????? | | ##?## #???#### ###???? | | #### ##?????## #???? | | ## %% #??????# ## #???? | | #### #????### ##### ##???? | | #???# #?#### ##??## ####?? | | ????# # ### ###?## #?? | | ????########### ## #### #?? | | ??????????????####### % #?? | | ????????????????????## ##?? | | ????????????????????## ## #??? | | ????????????????????# ### ##??? | | ????????????????????### #?## ##???? | | ??????????????????????# #??# #####????? | | ??????????????????????# ##?# ##????????? | | ?????????????????????##### #?# #?????????? | | ?????????????????????# ## ##?????????? | | ?????????????????????## %# ???????????? | | ?????????????????????# # ####### ???????????? | | ?????????????????????## # %#?????##???????????? | | ?????????????????????# ##??????#####???????? | | ?????????????????????# ## #????" """"#???????? | | ?????????????????????## # #????" " "#???????? | | ?????????????###?????# R%* ##???? "#???????? | | ????????????## ##????## @#!##????? #???????? | | ???????????## ##????##& ###?????? #???????? | | ???????????# ##????# " ##?????? "#???????? | | ??????????## #????##" #?##### #?######???? | | ?????????## ####?## " ### % #?# ##??? | | ?????????# # ### " " # ### ##?? | | ??????#### """ % " %# ## #?? | | ??????# " """ [ " #### #?? | | ??????# ###"#""""[ "" ## #?? | | ??##### ##?####" " #????? | | ?##& "# # #?????#" "" ##????? | | ?#" # # #?????## " % ##????? | | ?#!%# && ####??????### " #????? | | ?#["# # #???????????# ## #????? | | ?#%#### #???????????## ## ## #????? | | ?###??# #????????????##### ##### ##???? | | ??????##" ##????????????????##### #???? | | ???????#########????????????????????# ##???? | | ???????????????????????????????????## #????? | | ???????????????????????????????????# ######????? | | ???????????????????????????????????## #?????????? | | ????????????????????????????????????# #?????????? | | ???????????????????????????????????? ?????????? | | ???????????????????????????????????## ?????????? | | ????????????????????????????????????# #?????????? | +----------------------------------------------------+ Best States ------------- Heat Dissipation 25 Energy Generation 14 Energy Capacity 280 Matter Stores 300 Matter Capacity 300 Sight Range 16 Terrain Scan Density 10 Armor Coverage 150 Evasion (%) 55 Recoil Reduction 2 Item Schematics ----------------- None Robot Schematics ------------------ None Fabricated ------------ Nothing Repaired ---------- Nothing Studied --------- None Alien Tech Used ----------------- None Achievements -------------- None Challenges ------------ None Game ------ Seed WarlordMetafiberGravjet Manual? 0 Play Time 00:14:51 Cumulative 87.3 hours Start 2026.08.03 @ 10:12:08 End 2026.08.03 @ 10:24:02 Sessions 3 Manual Loads 0 Difficulty Rogue Special Mode None Game No. 62 Rogue 61 Adventurer 1 Explorer 0 Win Type - Total 6 Types 3/0/1/1/0/0/0/0/0/1 Lore% 48 Gallery% 56 Achievement% 53 Wizard Run 0 Options --------- Layout 1 ASCII 0 Keyboard 0 Movement Numpad Keybinds 0 Fullscreen 1 Font 32/SmallcapsGlow Map View 50x35 Zoom Use 0% Tactical HUD 1 Map Filters NONE Filters NONE Steam 1 RUN: 05ee4904-577f-453f-9434-71ca62679567